fUST/lending_fUST_20260115
["ID","MTS","AMOUNT","RATE_DAILY","PERIOD"]
[401928020,1768407051138,-500.0,0.00030136,5]
[401928022,1768407051147,-500.0,0.00030136,5]
[401928024,1768407051157,-500.0,0.00030136,5]
[401928026,1768407051167,-500.0,0.00030136,5]
[401928028,1768407051177,-500.0,0.00030136,5]
[401928030,1768407051187,-500.0,0.00030136,5]
[401928032,1768407051196,-500.0,0.00030136,5]
[401928034,1768407051206,-500.0,0.00030136,5]
[401928035,1768407051216,-500.0,0.00030136,5]
[401928037,1768407051225,-500.0,0.00030136,5]
[401928039,1768407051235,-545.94576966,0.00030136,5]
[401928041,1768407051246,-500.0,0.00030136,2]
[401928043,1768407051255,-500.0,0.00030136,2]
[401928045,1768407051266,-500.0,0.00030136,2]
[401928047,1768407051276,-500.0,0.00030136,2]
[401928049,1768407051285,-500.0,0.00030136,2]
[401928051,1768407051296,-500.0,0.00030136,2]
[401928053,1768407051307,-500.0,0.00030136,2]
[401928055,1768407051317,-500.0,0.00030136,2]
[401928057,1768407051327,-500.0,0.00030136,2]
[401928059,1768407051338,-500.32147189,0.00030136,2]
[401928061,1768407051348,-553.78630141,0.00030136,120]
[401928063,1768407051358,-500.0,0.00030136,5]
[401928065,1768407051367,-500.0,0.00030136,5]
[401928067,1768407051377,-500.0,0.00030136,5]
[401928069,1768407051388,-500.0,0.00030136,5]
[401928071,1768407051398,-500.0,0.00030136,5]
[401928073,1768407051406,-500.0,0.00030136,5]
[401928075,1768407051417,-503.46550104,0.00030136,5]
[401928077,1768407051427,-500.0,0.00030136,120]
[401928081,1768407051463,-500.0,0.00030136,120]
[401928083,1768407051472,-500.0,0.00030136,120]
[401928085,1768407051482,-500.0,0.00030136,120]
[401928087,1768407051491,-500.0,0.00030136,120]
[401928089,1768407051501,-500.0,0.00030136,120]
[401928091,1768407051511,-500.0,0.00030136,120]
[401928093,1768407051520,-500.0,0.00030136,120]
[401928095,1768407051529,-500.0,0.00030136,120]
[401928097,1768407051539,-500.0,0.00030136,120]
[401928098,1768407051549,-500.0,0.00030136,120]
[401928100,1768407051558,-500.0,0.00030136,120]
[401928102,1768407051568,-635.7088043,0.00030136,120]
[401928104,1768407051579,-500.0,0.00030136,120]
[401928106,1768407051589,-500.0,0.00030136,120]
[401928108,1768407051599,-500.0,0.00030136,120]
[401928111,1768407051609,-500.0,0.00030136,120]
[401928112,1768407051618,-500.0,0.00030136,120]
[401928114,1768407051628,-500.0,0.00030136,120]
[401928116,1768407051637,-500.0,0.00030136,120]
[401928118,1768407051647,-500.0,0.00030136,120]
[401928120,1768407051656,-500.0,0.00030136,120]
[401928122,1768407051666,-500.0,0.00030136,120]
[401928124,1768407051676,-500.0,0.00030136,120]
[401928126,1768407051688,-500.0,0.00030136,120]
[401928128,1768407051697,-500.0,0.00030136,120]
[401928130,1768407051707,-500.0,0.00030136,120]
[401928132,1768407051716,-214.20692039,0.00030136,120]
[401928134,1768407051726,-500.0,0.00030136,2]
[401928136,1768407051736,-500.0,0.00030136,2]
[401928138,1768407051745,-500.0,0.00030136,2]
[401928139,1768407051755,-500.0,0.00030136,2]
[401928140,1768407051764,-500.0,0.00030136,2]
[401928141,1768407051773,-500.0,0.00030136,2]
[401928142,1768407051784,-500.0,0.00030136,2]
[401928143,1768407051794,-455.4900817,0.00030136,2]
[401928144,1768407051803,-500.0,0.00030136,120]
[401928145,1768407051812,-264.74765926,0.00030136,120]
[401928146,1768407051822,-500.0,0.00030136,120]
[401928147,1768407051832,-214.83942936,0.00030136,120]
[401928148,1768407051841,-492.36217128,0.00030136,120]
[401928149,1768407051851,-500.0,0.00030136,120]
[401928150,1768407051861,-303.38565511,0.00030136,120]
[401928151,1768407051870,-500.0,0.00030136,120]
[401928152,1768407051880,-500.0,0.00030136,120]
[401928153,1768407051889,-500.0,0.00030136,120]
[401928154,1768407051898,-449.23527777,0.00030136,120]
[401928155,1768407051908,-500.0,0.00030136,120]
[401928156,1768407051917,-500.0,0.00030136,120]
[401928157,1768407051927,-426.474034,0.00030136,7]
[401928158,1768407051936,-426.474034,0.00030136,7]
[401928159,1768407051945,-426.474034,0.00030136,7]
[401928160,1768407051955,-426.474034,0.00030136,7]
[401928161,1768407051964,-426.474034,0.00030136,7]
[401928180,1768407052211,-426.474034,0.00030136,7]
[401928182,1768407052228,-426.474034,0.00030136,7]
[401928184,1768407052238,-125.88372679,0.00030136,7]
[401929687,1768407423101,3466.9,0.00027397,120]
[401929689,1768407831121,155.0,5e-05,2]
[401929691,1768407941297,1042.34115895,0.00027397,120]
[401929694,1768408110886,150.99999987,0.0002,120]
[401929695,1768408113867,1975.99083678,0.0002739,120]
[401929697,1768408115604,746.98816634,0.00026,120]
[401929752,1768408231798,-877.9337676,0.00011583,2]
[401929754,1768408231807,-34.14757286,0.00011583,2]
[401929760,1768408231858,-410.04481136,0.00011583,2]
[401929762,1768408231869,-138.80761578,0.00011583,2]
[401929764,1768408231879,-264.30388952,0.00011947,2]
[401929766,1768408231887,-300.0,0.00012312,2]
[401929767,1768408231896,-500.0,0.00012313,2]
[401929769,1768408231905,-500.0,0.00012313,2]
[401929772,1768408231914,-361.3940883,0.00012313,2]
[401929800,1768408237852,-138.6059117,0.00012313,2]
[401929802,1768408237862,-500.0,0.00012313,2]
[401929804,1768408237872,-202.64647992,0.00012313,2]
[401929806,1768408237882,-300.0,0.00012558,2]
[401929808,1768408237892,-300.0,0.00012558,2]
[401929810,1768408237901,-300.0,0.00012558,2]
[401929812,1768408237911,-300.0,0.00012558,2]
[401929814,1768408237921,-300.0,0.00012558,2]
[401929816,1768408237930,-300.0,0.00012558,2]
[401929818,1768408237939,-300.0,0.00012558,2]
[401929820,1768408237949,-300.0,0.00012558,2]
[401929822,1768408237958,-300.0,0.00012558,2]
[401929824,1768408237967,-300.0,0.00012558,2]
[401929826,1768408237976,-300.0,0.00012558,2]
[401929828,1768408237986,-300.0,0.00012558,2]
[401929830,1768408237995,-300.0,0.00012558,2]
[401929832,1768408238005,-300.0,0.00012558,2]
[401929834,1768408238014,-300.0,0.00012558,2]
[401929836,1768408238023,-600.0,0.00012559,2]
[401929838,1768408238031,-9846.91676426,0.000129,2]
[401929840,1768408238041,-500.0,0.00013273,2]
[401929842,1768408238050,-500.0,0.00013273,2]
[401929844,1768408238059,-500.0,0.00013273,2]
[401929846,1768408238069,-420.0,0.00013512,2]
[401929848,1768408238080,-1373.4799462,0.00013699,2]
[401929850,1768408238089,-1000.0,0.00013699,2]
[401929852,1768408238099,-500.0,0.00013699,2]
[401929854,1768408238108,-720.0,0.00013815,2]
[401929856,1768408238117,-1000.0,0.00013821,2]
[401929858,1768408238126,-1000.0,0.00013821,2]
[401929860,1768408238136,-1000.0,0.00013821,2]
[401929862,1768408238145,-311.87858963,0.00013947,2]
[401929864,1768408238156,-323.8476233,0.00014247,2]
[401929866,1768408238165,-1500.0,0.00014368,2]
[401929868,1768408238176,-1500.0,0.00014368,2]
[401929870,1768408238186,-1500.0,0.00014368,2]
[401929872,1768408238196,-2000.0,0.00014916,2]
[401929874,1768408238206,-2000.0,0.00014916,2]
[401929876,1768408238215,-253.91405382,0.00014916,2]
[401929878,1768408238227,-1746.08594618,0.00014916,2]
[401929880,1768408238237,-4493.85924719,0.00014968,2]
[401929882,1768408238247,-331.854837,0.00015068,2]
[401929884,1768408238257,-864.0,0.00015197,2]
[401929886,1768408238270,-5674.75418276,0.000152,2]
[401929889,1768408238282,-3923.6650203,0.00015201,2]
[401929891,1768408238296,-5923.25174389,0.00015201,2]
[401929893,1768408238307,-2500.0,0.00015464,2]
[401929896,1768408238319,-2500.0,0.00015464,2]
[401929898,1768408238331,-2500.0,0.00015464,2]
[401929900,1768408238342,-359.45328975,0.00015947,2]
[401929902,1768408238353,-215.88592206,0.00016,2]
[401929904,1768408238364,-692.29139729,0.00016012,2]
[401929906,1768408238374,-3000.0,0.00016012,2]
[401929908,1768408238385,-3000.0,0.00016012,2]
[401929910,1768408238397,-3500.0,0.0001656,2]
[401929912,1768408238408,-3500.0,0.0001656,2]
[401929915,1768408238422,-1000.0,0.00016716,2]
[401929917,1768408238441,-100000.0,0.0001699,2]
[401929919,1768408238453,-95477.61285994,0.00017,2]
[401929920,1768408238464,-2417.48910491,0.00017108,2]
[401929922,1768408238475,-4000.0,0.00017108,2]
[401929925,1768408238487,-1041.66666667,0.00017439,2]
[401929927,1768408238498,-217.1,0.00017548,2]
[401929929,1768408238510,-2137.48177052,0.000176,2]
[401929931,1768408238521,-4500.0,0.00017656,2]
[401929933,1768408238532,-9846.91676419,0.00017944,2]
[401929935,1768408238544,-407.02798986,0.00017947,2]
[401929938,1768408238556,-150512.98381193,0.00018,2]
[401929940,1768408238572,-39769.91253842,0.00018,5]
[401929942,1768408238583,-5000.0,0.00018204,2]
[401929943,1768408238596,-317.0,0.00018381,2]
[401929944,1768408238608,-1000.0,0.00018388,2]
[401929945,1768408238623,-244.0,0.00018388,2]
[401929946,1768408238634,-331.854837,0.00018493,2]
[401929947,1768408238644,-4493.85924717,0.00018735,2]
[401929948,1768408238655,-5500.0,0.00018752,2]
[401929949,1768408238669,-112216.22586163,0.000189,5]
[401929950,1768408238680,-303.10001603,0.000189,2]
[401929951,1768408238691,-217.1,0.00018907,2]
[401929952,1768408238702,-2603.49,0.00019,2]
[401929953,1768408238713,-17969.48957745,0.00019,2]
[401929954,1768408238724,-303.10001603,0.00019089,2]
[401929955,1768408238735,-507.1352,0.00019178,2]
[401929956,1768408238747,-507.1352,0.00019178,2]
[401929957,1768408238758,-271.46,0.00019178,2]
[401929958,1768408238769,-507.1352,0.00019178,2]
[401929959,1768408238785,-845.2254,0.00019178,2]
[401929960,1768408238797,-500.0,0.00019178,2]
[401929961,1768408238807,-1338.04,0.000192,2]
[401929962,1768408238817,-152.92,0.000192,2]
[401929963,1768408238827,-152.81,0.000192,2]
[401929964,1768408238838,-500.99801519,0.00019205,5]
[401929965,1768408238849,-303.10001603,0.00019278,2]
[401929966,1768408238861,-6000.0,0.000193,2]
[401929967,1768408238872,-303.10001603,0.00019467,2]
[401929968,1768408238883,-507.1352,0.00019589,3]
[401929969,1768408238894,-199.9948,0.00019589,3]
[401929970,1768408238905,-375.0948,0.00019589,3]
[401929971,1768408238917,-303.10001603,0.00019656,2]
[401929972,1768408238928,-454.65002405,0.00019845,4]
[401929973,1768408238940,-6500.0,0.00019848,2]
[401929974,1768408238951,-454.60268997,0.00019947,2]
[401929975,1768408238962,-871.37413275,0.0002,20]
[401929976,1768408238972,-507.1352,0.0002,4]
[401929977,1768408238984,-151.55000802,0.0002,2]
[401929978,1768408238995,-154.7746,0.0002,4]
[401929979,1768408239007,-668.88471487,0.0002,2]
[401929980,1768408239018,-14703.49659754,0.0002,2]
[401929981,1768408239029,-371.66132516,0.0002,2]
[401929982,1768408239041,-200181.45649297,0.0002,2]
[401929983,1768408239053,-6000.89259863,0.0002,2]
[401929984,1768408239064,-163524.2208646,0.0002,7]
[401929985,1768408239075,-804.32909815,0.0002,2]
[401929986,1768408239084,-77401.68985457,0.0002,2]
[401929987,1768408239094,-23000.0,0.0002,2]
[401929988,1768408239104,-82346.01286359,0.0002,7]
[401929989,1768408239115,-202.7514447,0.0002,2]
[401929990,1768408239125,-504.32904356,0.0002,2]
[401929991,1768408239135,-1671.0,0.0002,10]
[401929992,1768408239145,-454.65002405,0.00020034,4]
[401929993,1768408239157,-503.71435101,0.0002013,2]
[401929994,1768408239169,-454.65002405,0.00020223,4]
[401929995,1768408239180,-1000.0,0.00020227,2]
[401929996,1768408239192,-492.0,0.00020227,2]
[401929997,1768408239203,-217.1,0.00020265,2]
[401929998,1768408239214,-11553.71,0.000203,2]
[401929999,1768408239224,-3683.87260271,0.00020396,2]
[401930000,1768408239234,-454.65002405,0.00020412,4]
[401930001,1768408239244,-456.6605112,0.00020601,4]
[401930002,1768408239255,-1389.51235473,0.0002061,2]
[401930003,1768408239265,-9846.91676419,0.00020687,2]
[401930004,1768408239276,-1338.04,0.000209,2]
[401930005,1768408239287,-152.92,0.000209,2]
[401930006,1768408239299,-256.51440562,0.000209,2]
[401930007,1768408239309,-277.38884084,0.00021,2]
[401930008,1768408239320,-50000.0,0.00021,2]
[401930009,1768408239331,-1040.0176033,0.000215,2]
[401930010,1768408239342,-12864.48059022,0.000215,2]
[401930011,1768408239353,-572.90395227,0.000215,2]
[401930012,1768408239363,-217.1,0.00021624,2]
[401930013,1768408239374,-331.854837,0.00021918,2]
[401930014,1768408239384,-502.17739009,0.00021947,2]
[401930015,1768408239395,-568.82796279,0.0002196,10]
[401930016,1768408239406,-989.86,0.00022,7]
[401930017,1768408239417,-1000.0,0.00022249,10]
[401930018,1768408239428,-791.0,0.00022249,10]
[401930019,1768408239439,-300.0,0.00022466,2]
[401930020,1768408239450,-1033.75044732,0.000225,2]
[401930021,1768408239460,-4493.85924717,0.00022502,2]
[401930022,1768408239471,-217.1,0.00022983,2]
[401930023,1768408239484,-450.0,0.00023014,2]
[401930024,1768408239496,-11553.71,0.000231,2]
[401930025,1768408239506,-9846.91676419,0.00023431,2]
[401930026,1768408239516,-436.74681137,0.00023562,2]
[401930027,1768408239527,-500.0,0.00023672,2]
[401930029,1768408239538,-2000.0,0.00023767,7]
[401930030,1768408239549,-392.03531054,0.00023903,2]
[401930031,1768408239560,-522.71374739,0.00023903,2]
[401930032,1768408239570,-261.3568737,0.00023903,2]
[401930033,1768408239581,-549.7520902,0.00023947,2]
[401930034,1768408239591,-128967.02373672,0.00024,2]
[401930035,1768408239602,-989.86,0.00024,7]
[401930036,1768408239613,-1931.32974169,0.00024,60]
[401930037,1768408239627,-1736.447596,0.00024,2]
[401930038,1768408239636,-465.90719096,0.00024,2]
[401930039,1768408239646,-1041.66666667,0.00024,7]
[401930040,1768408239657,-151.0,0.00024,2]
[401930041,1768408239669,-155.398666,0.00024,2]
[401930042,1768408239679,-151.0,0.00024,2]
[401930043,1768408239690,-1189.142623,0.00024,2]
[401930044,1768408239702,-1189.142623,0.00024,2]
[401930045,1768408239712,-151.0,0.00024,2]
[401930046,1768408239723,-1189.142623,0.00024,2]
[401930047,1768408239732,-1189.142623,0.00024,2]
[401930048,1768408239743,-564.224456,0.00024,2]
[401930049,1768408239753,-564.224456,0.00024,2]
[401930050,1768408239764,-564.224456,0.00024,2]
[401930051,1768408239774,-564.224456,0.00024,2]
[401930052,1768408239784,-151.0,0.00024,2]
[401930053,1768408239795,-180.12969338,0.00024044,2]
[401930054,1768408239805,-1338.04,0.000241,14]
[401930055,1768408239816,-152.92,0.000241,7]
[401930056,1768408239826,-511930.29645519,0.00024142,2]
[401930057,1768408239837,-151.0,0.00024142,2]
[401930058,1768408239847,-151.0,0.00024142,2]
[401930059,1768408239858,-1189.142623,0.00024142,2]
[401930060,1768408239868,-1189.142623,0.00024142,2]
[401930061,1768408239879,-151.0,0.00024142,2]
[401930062,1768408239889,-1189.142623,0.00024142,2]
[401930063,1768408239900,-1189.142623,0.00024142,2]
[401930064,1768408239910,-564.224456,0.00024142,2]
[401930065,1768408239922,-564.224456,0.00024142,2]
[401930066,1768408239933,-564.224456,0.00024142,2]
[401930067,1768408239943,-564.224456,0.00024142,2]
[401930068,1768408239954,-167.12486556,0.00024171,5]
[401930069,1768408239965,-50340.12423014,0.000242,2]
[401930071,1768408239976,-152.81,0.000242,7]
[401930073,1768408239986,-2007.0,0.00024253,7]
[401930075,1768408239997,-173.0,0.00024329,12]
[401930077,1768408240007,-217.1,0.00024342,2]
[401930079,1768408240017,-500.0,0.00024373,2]
[401930081,1768408240027,-500.0,0.00024376,2]
[401930083,1768408240038,-2007.0,0.00024415,2]
[401930085,1768408240048,-500.0,0.0002442,2]
[401930087,1768408240059,-2010.0,0.00024436,2]
[401930089,1768408240069,-2010.0,0.00024469,7]
[401930091,1768408240079,-1000.0,0.00024474,10]
[401930093,1768408240089,-1000.0,0.00024474,10]
[401930095,1768408240100,-1126.0,0.000245,5]
[401930097,1768408240110,-2000.0,0.00024579,7]
[401930099,1768408240119,-2007.0,0.00024587,7]
[401930101,1768408240129,-500.0,0.00024628,2]
[401930104,1768408240149,-59556.64320171,0.0002465,2]
[401930106,1768408240162,-5000.0,0.00024768,2]
[401930109,1768408240174,-344.328788,0.000248,30]
[401930111,1768408240185,-500.0,0.00024803,2]
[401930112,1768408240195,-2010.0,0.00024865,2]
[401930115,1768408240207,-2007.0,0.00024879,2]
[401930117,1768408240217,-200.0,0.00024899,2]
[401930119,1768408240229,-160.18656469,0.00024899,2]
[401930121,1768408240239,-11553.71,0.000249,2]
[401930123,1768408240250,-528017.042538,0.000249,2]
[401930125,1768408240264,-151.0,0.000249,2]
[401930128,1768408240275,-1189.142623,0.000249,7]
[401930130,1768408240285,-1189.142623,0.000249,7]
[401930132,1768408240296,-151.0,0.000249,7]
[401930134,1768408240308,-1189.142623,0.000249,7]
[401930136,1768408240319,-1189.142623,0.000249,7]
[401930138,1768408240330,-564.224456,0.000249,7]
[401930140,1768408240342,-564.224456,0.000249,7]
[401930143,1768408240354,-564.224456,0.000249,7]
[401930145,1768408240366,-564.224456,0.000249,7]
[401930147,1768408240377,-2007.0,0.00024918,2]
[401930149,1768408240388,-500.0,0.0002493,2]
[401930151,1768408240400,-2010.0,0.00024943,2]
[401930154,1768408240411,-2023.57281371,0.00024944,2]
[401930157,1768408240423,-229.552525,0.00024944,30]
[401930159,1768408240434,-160.0,0.00024991,3]
[401930161,1768408240446,-989.86,0.00025,7]
[401930163,1768408240457,-174.051431,0.00025089,30]
[401930165,1768408240467,-996.0967193,0.00025098,7]
[401930167,1768408240478,-2007.0,0.00025189,7]
[401930169,1768408240489,-250.0,0.00025205,2]
[401930171,1768408240499,-151.0,0.000253,11]
[401930174,1768408240511,-331.854837,0.00025342,2]
[401930176,1768408240523,-2000.0,0.00025391,7]
[401930178,1768408240534,-189.0,0.00025425,16]
[401930180,1768408240545,-2007.0,0.00025454,2]
[401930182,1768408240555,-1338.04,0.000255,14]
[401930184,1768408240567,-152.92,0.000255,7]
[401930187,1768408240577,-2007.0,0.00025529,2]
[401930189,1768408240588,-160.0,0.00025569,4]
[401930190,1768408240598,-2007.0,0.00025583,2]
[401930192,1768408240609,-2007.0,0.00025631,7]
[401930193,1768408240622,-217.1,0.000257,2]
[401930194,1768408240636,-337.27880228,0.00025747,20]
[401930195,1768408240648,-2010.0,0.00025751,2]
[401930196,1768408240659,-350.0,0.00025753,2]
[401930197,1768408240673,-2007.0,0.00025905,2]
[401930198,1768408240684,-597.32679031,0.00025947,2]
[401930199,1768408240696,-2010.0,0.00025985,7]
[401930200,1768408240706,-6803.24817253,0.00026,10]
[401930201,1768408240717,-530.08019871,0.00026,2]
[401930202,1768408240727,-896.18087791,0.00026,2]
[401930203,1768408240738,-1041.66666667,0.00026,10]
[401930204,1768408240749,-161.0,0.00026,5]
[401930205,1768408240760,-2007.0,0.00026023,2]
[401930206,1768408240771,-4094.4,0.00026027,2]
[401930207,1768408240781,-2007.0,0.00026039,2]
[401930208,1768408240792,-2007.0,0.0002607,2]
[401930209,1768408240803,-11553.71,0.000261,2]
[401930210,1768408240814,-989.86,0.000261,7]
[401930211,1768408240824,-795.44292073,0.00026137,2]
[401930266,1768408241414,-1211.55707927,0.00026137,2]
[401930269,1768408241432,-160.0,0.00026146,5]
[401930271,1768408241444,-194.72949231,0.0002616,2]
[401930273,1768408241454,-9846.91676419,0.00026174,2]
[401930275,1768408241463,-2000.0,0.00026202,7]
[401930277,1768408241472,-5000.0,0.00026213,2]
[401930279,1768408241482,-4493.85924717,0.00026269,2]
[401930281,1768408241491,-450.0,0.00026301,2]
[401930283,1768408241501,-2007.0,0.00026317,2]
[401930285,1768408241510,-2010.0,0.00026337,2]
[401930287,1768408241519,-2007.0,0.00026367,2]
[401930289,1768408241529,-2007.0,0.00026476,2]
[401930291,1768408241539,-170.277357,0.00026476,30]
[401930293,1768408241548,-152.81,0.000265,7]
[401930295,1768408241558,-200.0,0.0002654,14]
[401930297,1768408241567,-337.27880228,0.0002655,21]
[401930300,1768408241577,-160.0,0.00026724,6]
[401930301,1768408241586,-550.0,0.00026849,2]
[401930304,1768408241596,-1338.04,0.000269,14]
[401930305,1768408241605,-152.92,0.000269,7]
[401930307,1768408241618,-1000.0,0.00026922,30]
[401930310,1768408241628,-1000.0,0.00026922,30]
[401930312,1768408241637,-579.0,0.00026922,30]
[401930314,1768408241647,-600.0,0.00027,14]
[401930315,1768408241657,-2000.0,0.00027014,7]
[401930317,1768408241668,-217.1,0.00027059,5]
[401930319,1768408241679,-215.0,0.00027068,23]
[401930321,1768408241690,-629.0,0.00027095,2]
[401930323,1768408241700,-2147.0,0.00027095,2]
[401930325,1768408241709,-417.0,0.00027095,2]
[401930327,1768408241719,-417.0,0.00027095,2]
[401930329,1768408241728,-715.0,0.00027095,2]
[401930331,1768408241738,-197.967,0.00027095,2]
[401930333,1768408241748,-989.86,0.000271,7]
[401930335,1768408241758,-151.0,0.000272,18]
[401930337,1768408241767,-11553.71,0.000273,2]
[401930339,1768408241777,-160.0,0.00027302,7]
[401930341,1768408241786,-337.27880228,0.00027352,23]
[401930343,1768408241796,-394.15965016,0.0002739,7]
[401930345,1768408241806,-3000.0,0.00027396,14]
[401930347,1768408241815,-189.3581526,0.00027397,3]
[401930350,1768408241833,-650.0,0.00027397,5]
[401930352,1768408241844,-500.0,0.00027397,5]
[401930354,1768408241854,-200.0,0.00027493,120]
[401930356,1768408241864,-139.49482537,0.000275,120]
[401930359,1768408241878,-1384.7308151,0.000275,120]
[401930361,1768408241887,-32354.03148685,0.000275,2]
[401930362,1768408241899,-13619.97900905,0.000275,2]
[401930363,1768408241909,-151.0,0.00027621,2]
[401930364,1768408241920,-151.0,0.00027621,2]
[401930365,1768408241930,-151.0,0.00027621,2]
[401930366,1768408241939,-151.0,0.00027621,2]
[401930367,1768408241951,-151.0,0.00027621,2]
[401930368,1768408241962,-151.0,0.00027621,2]
[401930369,1768408241971,-151.0,0.00027621,2]
[401930370,1768408241981,-151.0,0.00027621,2]
[401930371,1768408241991,-151.0,0.00027621,2]
[401930372,1768408242000,-151.0,0.00027621,2]
[401930373,1768408242010,-151.0,0.00027621,2]
[401930374,1768408242020,-151.0,0.00027621,2]
[401930375,1768408242030,-151.0,0.00027621,2]
[401930376,1768408242039,-151.0,0.00027621,2]
[401930377,1768408242049,-151.0,0.00027621,2]
[401930378,1768408242059,-151.0,0.00027621,2]
[401930379,1768408242068,-151.0,0.00027621,2]
[401930380,1768408242078,-1957.856,0.00027621,2]
[401930381,1768408242088,-5000.0,0.00027657,2]
[401930382,1768408242097,-16541.2429429,0.00027669,2]
[401930383,1768408242107,-4094.4,0.00027671,4]
[401930384,1768408242116,-2030.296672,0.00027676,2]
[401930385,1768408242127,-11343.4242698,0.000277,3]
[401930386,1768408242136,-2105.41764886,0.00027731,2]
[401930387,1768408242146,-1000.0,0.00027777,5]
[401930388,1768408242156,-2183.31810187,0.00027786,2]
[401930389,1768408242166,-1615.0614492,0.00027826,7]
[401930394,1768408242417,-384.9385508,0.00027826,7]
[401930395,1768408242427,-868.5027432,0.00027841,2]
[401930419,1768408245202,-282.14530168,0.0002749,10]
[401930424,1768408245256,-11963.86469832,0.0002749,10]
[401930426,1768408245266,-146.02530485,0.00027841,2]
[401930427,1768408245275,-160.0,0.00027879,8]
[401930428,1768408245285,-800.0,0.00027888,2]
[401930429,1768408245294,-1000.0,0.00027945,5]
[401930430,1768408245304,-750.0,0.00027945,5]
[401930431,1768408245314,-250.0,0.00027945,5]
[401930432,1768408245323,-250.0,0.00027945,5]
[401930433,1768408245333,-644.90149043,0.00027947,2]
[401930434,1768408245343,-15332.50098657,0.00028,2]
[401930435,1768408245353,-2583.99413959,0.00028,2]
[401930436,1768408245362,-520.63777123,0.00028,2]
[401930437,1768408245372,-1257.80356366,0.00028,120]
[401930438,1768408245381,-1041.66666667,0.00028,3]
[401930439,1768408245391,-337.27880228,0.00028155,24]
[401930440,1768408245400,-3000.0,0.00028218,14]
[401930441,1768408245410,-989.86,0.000283,7]
[401930442,1768408245420,-1338.04,0.000284,14]
[401930443,1768408245430,-152.92,0.000284,7]
[401930445,1768408245439,-217.1,0.00028418,5]
[401930447,1768408245450,-160.0,0.00028457,9]
[401930449,1768408245459,-850.0,0.00028493,5]
[401930451,1768408245468,-1349.80836073,0.00028493,5]
[401930453,1768408245478,-381.07735056,0.00028493,5]
[401930454,1768408245487,-350.0,0.00028493,5]
[401930455,1768408245497,-166322.98587106,0.000285,7]
[401930456,1768408245507,-728.0,0.00028536,3]
[401930457,1768408245516,-2000.0,0.00028637,7]
[401930458,1768408245526,-193.0,0.00028712,30]
[401930459,1768408245536,-300.0,0.0002874,2]
[401930460,1768408245546,-300.0,0.0002874,2]
[401930461,1768408245555,-630.3589,0.00028767,2]
[401930462,1768408245565,-331.854837,0.00028767,60]
[401930463,1768408245575,-200.0,0.00028868,120]
[401930464,1768408245584,-9846.91676419,0.00028917,2]
[401930465,1768408245594,-337.27880228,0.00028958,26]
[401930466,1768408245604,-914.74905794,0.00028979,7]
[401930468,1768408245614,-1219.66541058,0.00028979,7]
[401930470,1768408245627,-152.81,0.00029,7]
[401930472,1768408245636,-1020.0,0.00029,2]
[401930473,1768408245646,-160.0,0.00029035,10]
[401930474,1768408245655,-3000.0,0.0002904,14]
[401930475,1768408245666,-950.0,0.00029041,5]
[401930477,1768408245676,-450.0,0.00029041,5]
[401930478,1768408245686,-151.0,0.000291,19]
[401930479,1768408245696,-5000.0,0.00029102,2]
[401930480,1768408245706,-500.0,0.00029136,120]
[401930481,1768408245715,-500.0,0.00029136,120]